bitfinex-derivatives/quotes_ETHF0:USTF0_20250417
["timestamp","ask_amount","ask_price","bid_price","bid_amount"]
[1744856888804,5.8682,1588.2,1588.1,3.77026]
[1744856894011,7.12758,1588.2,1588.1,2.5108]
[1744856894203,7.12758,1588.2,1588.1,3.77026]
[1744856894408,5.8682,1588.2,1588.1,3.77026]
[1744856895103,7.12758,1588.2,1588.1,3.77026]
[1744856895914,5.8682,1588.2,1588.1,3.77026]
[1744856896114,4.207,1588.2,1588.1,3.77026]
[1744856901720,5.924,1588.2,1588.1,3.77026]
[1744856902218,4.207,1588.2,1588.1,3.77026]
[1744856903318,4.194,1588.4,1588.3,1.2593]
[1744856903517,4.194,1588.4,1588.3,4.4671]
[1744856903916,4.194,1588.4,1588.3,6.1271]
[1744856906620,4.194,1588.4,1588.3,2.9193]
[1744856906823,4.194,1588.4,1588.3,6.1271]
[1744856912028,96.9133,1588.7,1588.3,6.1271]
[1744856912029,0.8763,1588.7,1588.6,1.25907]
[1744856912222,3.3341,1588.9,1588.8,1.25891]
[1744856912423,2.4661,1588.9,1588.8,4.46671]
[1744856912731,4.193,1589.0,1588.9,1.25883]
[1744856913129,4.193,1589.0,1588.9,2.90323]
[1744856913531,5.45162,1589.2,1589.0,1.25873]
[1744856913730,5.7984,1589.2,1589.1,1.25867]
[1744856914026,5.7984,1589.2,1589.0,3.2078]
[1744856914231,1.7266,1589.1,1589.0,4.4665]
[1744856915033,1.7266,1589.1,1589.0,5.3255]
[1744856917433,1.7266,1589.1,1589.0,4.0668]
[1744856917633,2.5252,1589.1,1589.0,5.32555]
[1744856917831,1.7266,1589.1,1589.0,5.32555]
[1744856918032,4.193,1589.2,1589.1,1.25867]
[1744856918228,5.8521,1589.2,1589.1,2.92857]
[1744856919035,0.8607,1589.3,1589.2,1.25859]
[1744856919334,2.11921,1589.3,1589.2,4.8777]
[1744856919531,3.77831,1589.3,1589.2,4.8777]
[1744856920635,3.77831,1589.3,1589.2,6.13629]
[1744856920932,1.25832,1589.6,1589.4,1.2584]
[1744856921129,1.25832,1589.6,1589.4,3.2078]
[1744856921130,3.72957,1589.5,1589.4,3.2078]
[1744856922136,1.25843,1589.4,1589.3,0.0094515]
[1744856922338,7.10923,1589.4,1589.3,0.0094515]
[1744856924233,7.10923,1589.4,1589.3,1.2679615]
[1744856926041,7.10923,1589.4,1589.3,0.0094515]
[1744856931842,7.10923,1589.4,1589.3,1.2679615]
[1744856932041,7.10923,1589.4,1589.3,2.8840615]
[1744856932445,7.10923,1589.4,1589.3,1.6255515]
[1744856932744,7.10923,1589.4,1589.3,0.0094515]
[1744856943455,3.14662,1589.2,1588.8,5.75589062]
[1744856943651,1.25883,1588.9,1588.8,2.5512]
[1744856943956,1.25891,1588.8,1588.7,5.27879]
[1744856947454,4.177,1588.8,1588.7,6.96829]
[1744856949251,0.0094515,1588.9,1588.8,1.25891]
[1744856949454,0.0094515,1588.9,1588.8,2.94481]
[1744856949755,0.0094515,1588.9,1588.8,7.94481]
[1744856950952,0.0094515,1588.9,1588.8,2.94481]
[1744856951957,0.0094515,1588.9,1588.8,7.94481]
[1744856953152,1.5e-06,1588.9,1588.8,13.70070062]
[1744856960969,1.5e-06,1588.9,1588.8,46.01974689]
[1744856962066,5.9305,1589.4,1589.3,1.25851]
[1744856963270,5.9305,1589.4,1589.3,3.01131]
[1744856965373,0.8519,1589.5,1589.4,1.25843]
[1744856965585,0.8519,1589.5,1589.4,3.01123]
[1744856965878,2.441,1589.5,1589.4,3.01123]
[1744856967882,2.5497,1589.8,1589.7,1.25819]
[1744856968076,3.4181,1589.8,1589.7,1.25819]
[1744856968283,8.4181,1589.8,1589.7,1.25819]
[1744856968881,9.67622,1589.8,1589.6,2.9958715]
[1744856969082,1.7241,1589.7,1589.6,1.2676715]
[1744856969781,1.7241,1589.7,1589.6,2.9650715]
[1744856971384,7.98229,1589.7,1589.6,0.0094515]
[1744856972372,11.19009,1589.7,1589.6,0.0094515]
[1744856976986,17.18009,1589.7,1589.6,0.0094515]
[1744856981388,12.18009,1589.7,1589.6,0.0094515]
[1744856981587,17.18009,1589.7,1589.6,0.0094515]
[1744856984387,13.97229,1589.7,1589.6,0.0094515]
[1744856984792,17.18009,1589.7,1589.6,0.0094515]
[1744856987993,12.18009,1589.7,1589.6,0.0094515]
[1744856992493,19.18321003,1589.7,1589.0,1.25873]
[1744856992695,1.2587,1589.1,1589.0,4.63343]
[1744856993098,1.2587,1589.1,1589.0,9.63343]
[1744856993493,1.2587,1589.1,1589.0,4.63343]
[1744856993799,5.4440615,1589.2,1589.1,1.25867]
[1744856993996,0.0094515,1589.2,1589.1,6.10397]
[1744856994299,0.0094515,1589.2,1589.1,11.10397]
[1744857000905,0.0094515,1589.2,1589.1,6.10397]
[1744857012906,0.0094515,1589.2,1589.1,11.10397]
[1744857013102,0.0094515,1589.2,1589.1,16.85986062]
[1744857014123,0.0094515,1589.2,1589.1,21.03486062]
[1744857016920,0.0094515,1589.2,1589.1,16.03486062]
[1744857018421,0.0094515,1589.2,1589.1,24.40126067]
[1744857020519,3.31732472,1590.4,1589.3,3.2078]
[1744857020726,1.6788,1590.3,1590.2,1.2578]
[1744857021017,1.6788,1590.3,1590.2,4.4656]
[1744857021916,1.6788,1590.3,1590.2,6.072]
[1744857024820,5.0331,1590.4,1590.2,6.072]
[1744857025120,2.44276,1590.5,1590.3,1.74]
[1744857025312,1.5969,1590.4,1590.2,4.46554]
[1744857025516,0.8476,1590.3,1590.2,4.46554]
[1744857026220,1.1852,1590.5,1590.4,1.25764]
[1744857026419,1.1852,1590.5,1590.4,4.46544]
[1744857026825,1.1852,1590.5,1590.4,6.22074]
[1744857027514,20.91419087,1591.2,1590.6,6.28738]
[1744857027716,20.91419087,1591.2,1591.1,4.46489]
[1744857028212,19.57977087,1591.2,1591.1,9.46489]
[1744857028426,1.7626,1591.6,1591.5,1.25677]
[1744857028928,20.90344736,1591.7,1591.6,1.25669]
[1744857029118,20.90344736,1591.7,1591.6,4.46449]
[1744857029714,20.90344736,1591.7,1591.5,1.7553]
[1744857029924,4.8177,1591.6,1591.2,3.2078]
[1744857030126,1.25704,1591.2,1591.0,0.0094515]
[1744857030326,2.433,1591.1,1591.0,0.0094515]
[1744857030716,8.69009,1591.1,1591.0,0.0094515]
[1744857030917,9.50639,1591.1,1591.0,0.0094515]
[1744857031420,8.2493,1591.1,1591.0,0.0094515]
[1744857031625,13.67739,1591.1,1591.0,0.0094515]
[1744857031823,7.4203,1591.1,1591.0,0.0094515]
[1744857032024,8.67739,1591.1,1591.0,0.0094515]
[1744857032815,13.67739,1591.1,1591.0,0.0094515]
[1744857033220,1.25731,1590.9,1590.5,4.4653]
[1744857033421,7.14933,1590.8,1590.5,4.4653]
[1744857033621,2.5642,1590.7,1590.5,4.4653]
[1744857033828,1.721,1590.6,1590.5,4.4653]
[1744857034029,1.721,1590.6,1590.5,3.2078]
[1744857034825,1.25756,1590.5,1590.4,0.0094515]
[1744857035025,5.42856,1590.5,1590.4,0.0094515]
[1744857035328,1.25788,1590.1,1590.0,20.84108151]
[1744857035525,5.42888,1590.1,1589.7,3.2078]
[1744857035725,2.5642,1590.0,1589.8,1.25809]
[1744857035927,3.82221,1590.0,1589.7,4.46597]
[1744857036231,1.25804,1589.9,1589.7,3.2078]
[1744857036434,0.0094515,1590.0,1589.9,1.25804]
[1744857036641,0.0094515,1590.0,1589.9,4.46584]
[1744857037528,0.0094515,1590.0,1589.9,6.18404]
[1744857038128,0.0094515,1590.0,1589.9,11.18404]
[1744857038832,0.0094515,1590.0,1589.9,6.18404]
[1744857041635,0.0094515,1590.0,1589.9,11.93993062]
[1744857044031,0.0094515,1590.0,1589.9,16.93993062]
[1744857044231,1.5e-06,1590.0,1589.9,16.93993062]
[1744857044426,1.5e-06,1590.0,1589.9,21.27593062]
[1744857046839,1.7071,1590.4,1590.3,1.25772]
[1744857047137,1.7071,1590.4,1590.3,4.46552]
[1744857047333,5.2083,1590.6,1590.5,1.25756]
[1744857047538,6.9154,1590.6,1590.5,1.25756]
[1744857048040,1.25759,1590.5,1590.3,10.22138062]
[1744857048239,3.01699,1590.5,1590.3,10.22138062]
[1744857048438,0.8135,1590.4,1590.3,10.22138062]
[1744857048635,2.5729,1590.4,1590.3,10.22138062]
[1744857051540,2.5729,1590.4,1590.3,8.96369062]
[1744857051729,8.83054,1590.4,1590.3,5.75589062]
[1744857051934,3.83054,1590.4,1590.3,5.75589062]
[1744857052146,2.5729,1590.4,1590.3,7.01361062]
[1744857053137,2.5729,1590.4,1590.3,1.25772]
[1744857053337,3.83054,1590.4,1590.3,1.25772]
[1744857053940,1.2578,1590.2,1590.0,1.25792]
[1744857054243,5.5928,1590.2,1590.0,1.25792]
[1744857054436,2.5265,1590.1,1590.0,1.25792]
[1744857054944,1.6466,1590.1,1590.0,2.92702]
[1744857055441,4.335,1590.2,1590.1,1.25788]
[1744857055745,4.335,1590.2,1590.1,6.13478]
[1744857056044,1.2579,1590.1,1589.9,4.4658]
[1744857056336,1.6466,1590.0,1589.9,4.4658]
[1744857056538,2.4823,1590.0,1589.9,4.4658]
[1744857056742,3.74026,1590.0,1589.8,1.25807]
[1744857056938,1.6466,1589.9,1589.8,1.25807]
[1744857057834,1.6466,1589.9,1589.8,2.99937]
[1744857059949,5.9826,1589.9,1589.7,3.2172515]
[1744857060151,7.24066,1589.9,1589.7,4.4754015]
[1744857060447,1.7057,1589.8,1589.7,4.4754015]
[1744857062748,4.336,1589.9,1589.7,4.4754015]
[1744857062749,4.336,1589.9,1589.8,1.25812]
[1744857063043,4.336,1589.9,1589.8,1.7159]
[1744857063248,6.0417,1589.9,1589.8,1.25812]
[1744857064553,6.0417,1589.9,1589.8,2.89362]
[1744857064753,4.336,1589.9,1589.8,2.89362]
[1744857065055,1.7156,1590.0,1589.9,1.25804]
[1744857065259,1.7156,1590.0,1589.9,2.89354]
[1744857065460,3.3345,1590.0,1589.9,2.89354]
[1744857065755,3.3345,1590.0,1589.9,1.25804]
[1744857065955,3.3345,1590.0,1589.8,1.25807]
[1744857066156,1.6189,1589.9,1589.8,1.25807]
[1744857066451,2.87694,1589.9,1589.8,1.25807]
[1744857066660,1.25812,1589.8,1589.7,1.2675915]
[1744857066859,1.6453,1589.8,1589.7,1.2675915]
[1744857067066,7.23942,1589.8,1589.7,1.2675915]
[1744857067360,5.9813,1589.8,1589.7,1.2675915]
[1744857068866,7.23942,1589.8,1589.7,0.0094515]
[1744857069060,10.9813,1589.8,1589.4,1.25841]
[1744857069260,2.5225,1589.7,1589.4,1.25841]
[1744857069460,3.83398,1589.6,1589.4,1.25841]
[1744857069767,6.0904,1589.5,1589.4,1.25841]
[1744857071761,6.0904,1589.5,1589.4,2.86611]
[1744857073166,6.0904,1589.5,1589.4,1.25841]
[1744857073363,6.0904,1589.5,1589.3,1.2679315]
[1744857073565,2.5231,1589.4,1589.3,1.2679315]
[1744857074269,3.78153,1589.4,1589.3,0.0094515]
[1744857075569,2.5231,1589.4,1589.3,1.2679615]
[1744857084377,3.78153,1589.4,1589.3,0.0094515]
[1744857085875,8.78153,1589.4,1589.3,0.0094515]
[1744857086273,8.78153,1589.4,1589.3,1.2679615]
[1744857086473,3.78153,1589.4,1589.3,1.2679615]
[1744857086673,3.78153,1589.4,1589.3,0.0094515]
[1744857088478,3.78153,1589.4,1589.3,1.2679615]
[1744857088781,3.78153,1589.4,1589.3,0.0094515]
[1744857090674,8.78153,1589.4,1589.3,0.0094515]
[1744857090876,1.25867,1589.1,1588.9,2.1316]
[1744857091077,5.1955,1589.0,1588.9,1.2588]
[1744857091278,7.6033,1589.0,1588.9,1.2588]
[1744857091584,4.375,1589.0,1588.9,6.1899]
[1744857094774,4.375,1589.0,1588.9,2.9821]
[1744857094979,6.0991,1589.0,1588.9,2.9821]
[1744857095682,6.9707,1589.0,1588.9,2.9821]
[1744857098188,8.22945,1589.0,1588.9,1.7233]
[1744857098585,8.22945,1589.0,1588.9,2.98213]
[1744857098586,6.9707,1589.0,1588.9,2.98213]
[1744857098986,6.9707,1589.0,1588.9,6.18993]
[1744857099590,6.9707,1589.0,1588.9,2.98213]
[1744857099785,6.9707,1589.0,1588.9,1.25883]
[1744857100488,8.22949,1589.0,1588.9,2.92213]
[1744857100791,8.22949,1589.0,1588.9,1.6633]
[1744857101192,1.25883,1588.9,1588.8,2.0634215]
[1744857101391,3.72173,1588.9,1588.8,0.0094515]
[1744857103094,8.72173,1588.9,1588.8,0.0094515]
[1744857103294,3.72173,1588.9,1588.8,0.0094515]
[1744857107297,8.72173,1588.9,1588.8,0.0094515]
[1744857107496,3.1473,1588.8,1588.4,0.819]
[1744857107697,1.25917,1588.5,1588.3,2.99497]
[1744857107902,5.55222,1588.4,1588.3,1.7357]
[1744857108093,8.02572,1588.4,1588.3,1.7357]
[1744857108291,1.25942,1588.2,1588.0,9.62590005]
[1744857108499,0.0094515,1588.3,1588.2,1.25938]
[1744857109304,1.2687515,1588.3,1588.1,2.9951]
[1744857109494,1.2687515,1588.3,1588.2,1.761]
[1744857112703,1.2687515,1588.3,1588.2,3.02038]
[1744857112999,1.2687515,1588.3,1588.2,1.761]
[1744857113605,2.9934515,1588.3,1588.2,1.761]
[1744857117306,1.7341515,1588.3,1588.1,3.2078]
[1744857117504,3.77628,1588.2,1588.1,3.2078]
[1744857118308,1.25946,1588.1,1588.0,2.4481]
[1744857118609,1.25954,1588.0,1587.9,4.0362515]
[1744857118994,2.92624,1588.0,1587.9,4.0362515]
[1744857119199,2.92624,1588.0,1587.9,5.6774515]
[1744857119407,2.92624,1588.0,1587.9,4.8584515]
[1744857120108,6.36962,1588.1,1587.9,6.1180715]
[1744857120307,6.36962,1588.1,1588.0,1.6412]
[1744857120506,1.25954,1588.0,1587.9,0.0094515]
[1744857120805,2.92624,1588.0,1587.9,0.0094515]
[1744857121200,2.92624,1588.0,1587.9,1.6506515]
[1744857122309,2.92624,1588.0,1587.9,0.0094515]
[1744857127211,6.13404,1588.0,1587.9,0.0094515]
[1744857127710,2.92624,1588.0,1587.9,0.0094515]
[1744857129112,3.41802934,1588.0,1587.9,0.0094515]
[1744857130114,2.92624,1588.0,1587.9,0.0094515]
[1744857130724,2.92624,1588.0,1587.9,1.7519515]
[1744857130921,2.92624,1588.0,1587.9,2.5600515]
[1744857131424,2.92624,1588.0,1587.9,0.0094515]
[1744857132125,6.13404,1588.0,1587.9,0.0094515]
[1744857132626,2.92624,1588.0,1587.9,0.0094515]
[1744857133625,6.13404,1588.0,1587.9,0.0094515]
[1744857136530,1.25978,1587.7,1587.6,2.4352]
[1744857136721,5.49678,1587.7,1587.6,2.4352]
[1744857138024,7.19978,1587.7,1587.6,2.4352]
[1744857138232,1.25986,1587.6,1587.5,0.0094515]
[1744857138435,1.25986,1587.6,1587.5,1.6785515]
[1744857138739,3.77046,1587.6,1587.5,0.0094515]
[1744857139233,6.97826,1587.6,1587.5,0.0094515]
[1744857141926,3.77046,1587.6,1587.5,0.0094515]
[1744857142931,4.237,1587.7,1587.6,1.25986]
[1744857143234,4.237,1587.7,1587.6,4.63876]
[1744857144226,5.49678,1587.7,1587.6,3.3789]
[1744857144935,5.49678,1587.7,1587.6,4.63876]
[1744857145133,4.237,1587.7,1587.6,4.63876]
[1744857147536,4.237,1587.7,1587.6,7.84656]
[1744857148940,5.49678,1587.7,1587.6,7.84656]
[1744857149237,4.237,1587.7,1587.6,4.63876]
[1744857150540,5.49678,1587.7,1587.6,3.3789]
[1744857150732,7.13978,1587.7,1587.6,3.3789]
[1744857151640,5.49678,1587.7,1587.6,3.3789]
[1744857154242,5.49678,1587.7,1587.6,4.63876]
[1744857155142,4.237,1587.7,1587.6,4.63876]
[1744857155340,4.237,1587.7,1587.6,7.84656]
[1744857156847,5.49678,1587.7,1587.6,7.84656]
[1744857157146,5.49678,1587.7,1587.6,4.63876]
[1744857157649,5.49678,1587.7,1587.6,3.3789]
[1744857158548,6.37558,1587.7,1587.6,3.3789]
[1744857158736,7.20398,1587.7,1587.6,3.3789]
[1744857159537,7.20398,1587.7,1587.6,2.5114]
[1744857160550,4.237,1587.7,1587.6,2.5114]
[1744857160749,4.237,1587.7,1587.6,4.62756]
[1744857163047,5.49678,1587.7,1587.6,3.3677]
[1744857163946,5.49678,1587.7,1587.6,4.62756]
[1744857165653,4.237,1587.7,1587.6,4.62756]
[1744857165848,4.237,1587.7,1587.6,3.3677]
[1744857165849,5.49678,1587.7,1587.6,3.3677]
[1744857166047,7.09798,1587.7,1587.6,3.3677]
[1744857166248,7.09798,1587.7,1587.6,1.6429]
[1744857168557,1.25986,1587.6,1587.5,0.0094515]
[1744857168756,4.64626,1587.6,1587.5,0.0094515]
[1744857168955,4.64626,1587.6,1587.5,1.6353515]
[1744857169957,4.64626,1587.6,1587.5,2.8952915]
[1744857171664,4.64626,1587.6,1587.5,1.6353515]
[1744857172452,4.64626,1587.6,1587.5,0.0094515]
[1744857176964,1.2601,1587.3,1587.2,1.6417]
[1744857177261,1.26018,1587.2,1587.1,23.79792151]
[1744857177461,4.60508,1587.2,1587.1,20.84108151]
[1744857178858,3.3449,1587.2,1587.1,1.26026]
[1744857179362,1.26026,1587.1,1587.0,5.7621916]
[1744857179550,2.94766,1587.1,1587.0,7.4038916]
[1744857179756,2.94766,1587.1,1587.0,8.6642316]
[1744857179964,1.6874,1587.1,1587.0,8.6642316]
[1744857180858,2.94766,1587.1,1587.0,8.6642316]
[1744857181054,2.94766,1587.1,1587.0,0.00630098]
[1744857184261,0.0094515,1587.3,1587.0,0.00630098]
[1744857184470,4.192,1587.2,1587.1,1.26026]
[1744857184767,4.192,1587.2,1587.1,3.82766]
[1744857187967,4.2014515,1587.3,1587.2,1.26018]
[1744857188265,4.2014515,1587.3,1587.2,3.71238]
[1744857192674,4.2014515,1587.3,1587.0,0.00630098]
[1744857192864,3.352,1587.2,1587.0,1.26661098]
[1744857193064,1.26026,1587.1,1587.0,3.03221098]
[1744857193263,4.61222,1587.2,1587.0,3.03221098]
[1744857193771,1.26026,1587.1,1587.0,3.03221098]
[1744857193973,2.93156,1587.1,1587.0,1.77190098]
[1744857194180,2.93156,1587.1,1587.0,0.00630098]
[1744857196176,1.6713,1587.1,1587.0,1.26664098]
[1744857196379,0.8291,1587.2,1587.1,1.26026]
[1744857196881,5.8961515,1587.3,1587.2,1.26018]
[1744857197282,5.8961515,1587.3,1587.2,2.88838]
[1744857198585,5.8961515,1587.3,1587.2,1.6282]
[1744857198774,1.26018,1587.2,1587.1,1.2602]
[1744857198978,1.6414,1587.2,1587.1,3.0079]
[1744857199179,2.90158,1587.2,1587.1,3.0079]
[1744857199380,4.61488,1587.2,1587.1,3.0079]
[1744857199679,3.3547,1587.2,1587.1,3.0079]
[1744857199887,2.5047,1587.2,1587.1,3.0079]
[1744857200387,4.2014515,1587.3,1587.2,1.26018]
[1744857200593,4.2014515,1587.3,1587.2,3.00788]
[1744857202289,5.4615515,1587.3,1587.2,3.00788]
[1744857202483,7.1292515,1587.3,1587.2,3.00788]
[1744857203389,5.8691515,1587.3,1587.2,3.00788]
[1744857204892,4.2014515,1587.3,1587.2,3.00788]
[1744857206891,5.8022515,1587.3,1587.2,3.00788]
[1744857207793,7.0623515,1587.3,1587.2,3.00788]
[1744857208094,7.0623515,1587.3,1587.2,1.7477]
[1744857208693,5.8022515,1587.3,1587.2,3.00788]
[1744857210695,7.0623515,1587.3,1587.2,3.00788]
[1744857211097,5.8022515,1587.3,1587.2,3.00788]
[1744857212889,7.0623515,1587.3,1587.2,3.00788]
[1744857213195,5.8022515,1587.3,1587.2,3.00788]
[1744857213589,7.0623515,1587.3,1587.1,4.468]
[1744857213897,1.26026,1587.1,1587.0,0.00630098]
[1744857214495,7.09866,1587.1,1587.0,0.00630098]
[1744857214691,8.83636,1587.1,1587.0,0.00630098]
[1744857215192,12.04416,1587.1,1587.0,0.00630098]
[1744857215494,7.04416,1587.1,1587.0,0.00630098]
[1744857223999,1.26046,1586.9,1586.7,2.09744]
[1744857224301,1.655,1586.8,1586.7,2.09744]
[1744857224499,2.4611,1586.8,1586.7,3.86064]
[1744857226599,0.8061,1586.8,1586.7,3.86064]
[1744857227301,6.6622,1586.9,1586.8,1.26049]
[1744857227599,6.6622,1586.9,1586.8,2.93359]
[1744857227795,5.8556,1586.9,1586.8,2.93359]
[1744857228301,7.11601,1586.9,1586.8,2.93359]
[1744857228609,7.11601,1586.9,1586.8,1.26049]
[1744857230001,5.8556,1586.9,1586.8,1.26049]
[1744857230705,4.204,1586.9,1586.8,1.26049]
[1744857233106,5.7994,1586.9,1586.8,1.26049]
[1744857233803,7.05981,1586.9,1586.8,1.26049]
[1744857235305,7.05981,1586.9,1586.7,2.86291]
[1744857235503,7.05981,1586.9,1586.8,1.26049]
[1744857235800,7.05981,1586.9,1586.7,1.26052]
[1744857236008,2.90049,1586.8,1586.7,1.26052]
[1744857236508,1.64,1586.8,1586.7,1.26052]
[1744857236902,1.64,1586.8,1586.6,7.81921]
[1744857237102,1.64,1586.8,1586.7,1.6939]
[1744857237406,1.64,1586.8,1586.7,2.95447]
[1744857239809,2.90049,1586.8,1586.7,2.95447]
[1744857240108,2.90049,1586.8,1586.7,1.6939]
[1744857242209,1.64,1586.8,1586.7,2.95447]
[1744857242705,2.90049,1586.8,1586.7,2.95447]
[1744857243207,8.67227,1586.9,1586.7,2.95447]
[1744857243509,8.67227,1586.9,1586.8,1.7649]
[1744857244310,1.26049,1586.8,1586.7,1.26052]
[1744857244512,1.26049,1586.8,1586.7,3.02542]
[1744857245012,1.26049,1586.8,1586.7,1.7649]
[1744857245310,2.96259,1586.8,1586.7,3.02547]
[1744857245511,2.96259,1586.8,1586.7,1.7649]
[1744857248915,1.26057,1586.7,1586.6,2.91755]
[1744857249111,2.88777,1586.7,1586.6,3.78805]
[1744857250520,1.26065,1586.6,1586.5,3.2078]
[1744857250714,8.90635,1586.6,1586.4,4.63434]
[1744857251016,8.90635,1586.6,1586.5,1.26073]
[1744857251216,7.6457,1586.6,1586.5,2.94913]
[1744857251621,8.90635,1586.6,1586.5,1.6884]
[1744857252117,8.90635,1586.6,1586.5,2.94913]
[1744857252919,6.7694,1586.6,1586.5,2.94913]
[1744857253217,4.19,1586.8,1586.5,9.84022]
[1744857253417,5.45049,1586.8,1586.7,1.26051]
[1744857254018,5.45049,1586.8,1586.7,2.09571]
[1744857255220,4.19,1586.8,1586.7,2.95581]
[1744857256220,1.6688,1587.0,1586.7,1.6953]
[1744857256415,4.19,1587.0,1586.9,1.26041]
[1744857258320,3.2078,1587.1,1587.0,1.26034]
[1744857259021,4.189,1587.2,1587.0,1.26028]
[1744857259222,5.4492,1587.2,1587.1,2.539]
[1744857259416,7.0789,1587.2,1587.1,2.539]
[1744857260426,7.07893,1587.2,1587.0,1.2603]
[1744857260726,2.4421,1587.1,1587.0,3.7993]
[1744857260926,4.189,1587.2,1587.1,1.26026]
[1744857261126,4.189,1587.2,1587.1,2.91836]
[1744857261329,5.8187,1587.2,1587.1,2.91836]
[1744857262326,7.07888,1587.2,1587.1,1.6581]
[1744857262527,5.8187,1587.2,1587.1,2.91836]
[1744857263028,7.07888,1587.2,1587.1,2.91836]
[1744857263728,5.8187,1587.2,1587.1,2.91836]
[1744857264427,4.189,1587.2,1587.1,2.91836]
[1744857264935,96.1134515,1587.3,1587.2,1.26018]
[1744857265230,100.3024515,1587.3,1587.2,3.70508]
[1744857265533,0.0094515,1587.3,1587.2,11.91288]
[1744857265733,9.53654,1587.7,1587.5,1.2599]
[1744857265935,8.2767,1587.7,1587.6,1.25986]
[1744857266131,8.2767,1587.7,1587.5,1.2599]
[1744857266326,1.25992,1587.6,1587.5,1.6149]
[1744857266528,3.75522,1587.6,1587.5,1.6149]
[1744857267340,2.4953,1587.6,1587.5,2.87484]
[1744857267530,8.2861515,1587.7,1587.6,1.25986]
[1744857267730,9.5459315,1587.7,1587.6,2.4892]
[1744857268132,7.9585315,1587.7,1587.6,2.4892]
[1744857268431,6.6987515,1587.7,1587.6,3.74906]
[1744857268637,4.1984515,1587.7,1587.6,3.74906]
[1744857269327,5.4582315,1587.7,1587.6,2.4892]
[1744857269635,7.0786315,1587.7,1587.6,2.4892]
[1744857270437,1.6298515,1587.7,1587.6,3.74906]
[1744857270630,0.0094515,1587.7,1587.6,3.74906]
[1744857271137,1.2692315,1587.7,1587.6,3.74906]
[1744857271339,0.0094515,1587.7,1587.6,3.74906]
[1744857274338,1.2692315,1587.7,1587.6,2.4892]
[1744857274529,1.6498515,1587.7,1587.4,3.2172515]
[1744857274734,1.25994,1587.5,1587.4,0.0094515]
[1744857275233,2.90034,1587.5,1587.4,0.0094515]
[1744857281642,6.10814,1587.5,1587.4,0.0094515]
[1744857281851,1.26026,1587.1,1586.9,11.97966062]
[1744857282547,2.99086,1587.1,1586.9,11.97966062]
[1744857282938,2.99086,1587.1,1587.0,1.7556]
[1744857283347,2.99086,1587.1,1587.0,3.01594]
[1744857283545,2.99086,1587.1,1587.0,1.7556]
[1744857284242,1.7306,1587.1,1587.0,3.01594]
[1744857285047,2.99086,1587.1,1587.0,3.01594]
[1744857285751,2.92335,1587.3,1587.0,1.7556]
[1744857285952,4.188,1587.2,1587.1,3.88399]
[1744857286450,5.44818,1587.2,1587.1,3.88406]
[1744857286651,5.44818,1587.2,1587.1,2.6238]
[1744857287043,7.07148,1587.2,1587.1,2.6238]
[1744857287852,7.07148,1587.2,1587.1,3.88406]
[1744857288353,7.07148,1587.2,1587.1,2.6238]
[1744857289449,7.07148,1587.2,1587.1,3.88406]
[1744857290250,7.07148,1587.2,1587.1,2.6238]
[1744857290451,7.07148,1587.2,1587.1,3.88406]
[1744857290652,7.07148,1587.2,1587.1,2.6238]
[1744857291145,7.07148,1587.2,1587.1,3.88406]
[1744857291548,4.188,1587.2,1587.1,3.88406]
[1744857292646,5.44818,1587.2,1587.1,3.88406]
[1744857292852,5.44818,1587.2,1587.1,7.09186]
[1744857294249,4.188,1587.2,1587.1,7.09186]
[1744857294855,5.44818,1587.2,1587.1,7.09186]
[1744857295159,5.44818,1587.2,1587.1,5.8316]
[1744857295457,5.44818,1587.2,1587.1,7.09186]
[1744857295657,1.26031,1587.1,1586.9,8.96369062]
[1744857295856,2.88751,1587.1,1586.9,10.22405062]
[1744857296354,2.88751,1587.1,1586.9,11.86265062]
[1744857296750,1.6272,1587.1,1586.9,11.86265062]
[1744857296947,1.26034,1587.0,1586.9,11.86265062]
[1744857297455,2.94104,1587.0,1586.9,10.60229062]
[1744857297760,1.26041,1586.9,1586.8,2.90207]
[1744857297958,1.6272,1586.9,1586.8,2.90207]
[1744857298155,1.6272,1586.9,1586.8,4.54067]
[1744857298554,1.6807,1587.0,1586.9,1.26041]
[1744857298750,1.6807,1587.0,1586.9,2.88351]
[1744857299145,2.94104,1587.0,1586.9,2.88351]
[1744857299357,1.6807,1587.0,1586.9,2.88351]
[1744857299559,0.8465,1587.0,1586.9,2.88351]
[1744857300459,2.10684,1587.0,1586.9,2.88351]
[1744857300963,2.10684,1587.0,1586.9,1.6231]
[1744857301159,1.26041,1586.9,1586.8,0.826]
[1744857301359,1.6253,1586.9,1586.8,3.78489]
[1744857301762,2.88571,1586.9,1586.8,3.78489]
[1744857303564,2.88571,1586.9,1586.8,1.26049]
[1744857304063,2.88571,1586.9,1586.8,2.95889]
[1744857304466,0.8465,1587.0,1586.9,1.26041]
[1744857304765,1.26034,1587.0,1586.9,3.73541]
[1744857304963,4.48241,1587.1,1586.9,3.73541]
[1744857305164,0.8058,1587.1,1587.0,2.92144]
[1744857305356,2.06606,1587.1,1587.0,2.92144]
[1744857305852,5.44824,1587.2,1587.1,1.26026]
[1744857306055,5.44824,1587.2,1587.1,3.71776]
[1744857306257,2.87053,1587.4,1587.1,5.6653]
[1744857306467,8.65593,1587.4,1587.3,1.2601]
[1744857306857,8.65593,1587.4,1587.3,2.9212]
[1744857307080,8.65593,1587.4,1587.3,1.6611]
[1744857307764,8.65593,1587.4,1587.3,2.9212]
[1744857308152,8.65593,1587.4,1587.3,1.6611]
[1744857309155,8.65593,1587.4,1587.2,2.07406]
[1744857309462,1.6309,1587.3,1587.2,2.07406]